bitfinex-derivatives/quotes_SOLF0:USTF0_20250110
["timestamp","ask_amount","ask_price","bid_price","bid_amount"]
[1736549755594,2.6578,188.16,188.1,7.05332833]
[1736549756183,2.6578,188.15,188.1,7.05332833]
[1736549757787,2.59443768,188.15,188.1,7.05332833]
[1736549760795,7.05332833,188.16,188.05,5.38]
[1736549760998,7.05332833,188.14,188.07,7.05332833]
[1736549761294,2.9619,188.13,188.07,7.05332833]
[1736549761696,2.9619,188.13,188.01,31.61828693]
[1736549761900,2.9619,188.13,188.06,7.05332833]
[1736549762295,2.6585,188.1,188.06,7.05332833]
[1736549763294,2.8144,188.11,188.06,7.05332833]
[1736549763596,2.6587,188.09,188.06,7.05332833]
[1736549764494,5.4728,188.11,188.08,7.05332833]
[1736549765199,5.4728,188.11,188.06,7.05332833]
[1736549766198,2.6585,188.1,188.06,7.05332833]
[1736549766699,2.8144,188.11,188.06,7.05332833]
[1736549766904,2.6587,188.09,188.06,7.05332833]
[1736549767201,2.6587,188.09,188.04,7.05332833]
[1736549767502,2.6588,188.08,188.04,7.05332833]
[1736549767999,2.6588,188.08,187.85,273.29511534]
[1736549768000,7.05332833,188.05,187.92,7.32986422]
[1736549768200,7.05332833,188.0,187.92,7.32986422]
[1736549768402,2.6605,187.97,187.92,7.32986422]
[1736549768697,7.05332833,187.98,187.92,7.32986422]
[1736549769399,7.05332833,187.96,187.92,7.32986422]
[1736549769798,7.05332833,187.96,187.88,152.04621339]
[1736549769799,2.6609,187.94,187.88,7.05332833]
[1736549770203,7.05332833,187.92,187.84,2.662]
[1736549770399,7.05332833,187.92,187.84,9.71532833]
[1736549770794,7.05332833,187.92,187.84,7.05332833]
[1736549771801,2.6608,187.94,187.86,7.05332833]
[1736549772001,7.05332833,187.93,187.86,7.05332833]
[1736549772797,7.05332833,187.93,187.86,9.71512833]
[1736549774306,7.05332833,187.93,187.86,7.05332833]
[1736549774601,7.05332833,187.93,187.87,2.6617]
[1736549775897,7.05332833,187.93,187.81,6.526]
[1736549776102,7.05332833,187.93,187.84,7.05332833]
[1736549776598,9.71452833,187.91,187.81,1.106]
[1736549776798,9.71452833,187.91,187.83,7.05332833]
[1736549777202,9.71452833,187.91,187.83,9.71562833]
[1736549777903,7.05332833,187.89,187.83,9.71562833]
[1736549778300,7.05332833,187.89,187.83,7.05332833]
[1736549778503,7.05332833,187.89,187.81,13.57932833]
[1736549778903,7.05332833,187.89,187.81,8.15932833]
[1736549779904,7.05332833,187.89,187.83,7.05332833]
[1736549781997,7.05332833,187.89,187.83,9.71562833]
[1736549782805,7.05332833,187.89,187.83,2.6623]
[1736549786400,9.71462833,187.91,187.83,2.6622]
[1736549787806,9.71462833,187.91,187.81,1.106]
[1736549788000,2.6613,187.91,187.84,2.6621]
[1736549788399,9.71462833,187.91,187.84,2.6621]
[1736549788803,2.6614,187.9,187.83,2.6623]
[1736549789009,5.4875,187.9,187.83,2.6623]
[1736549789205,7.05332833,187.89,187.83,2.6623]
[1736549790100,7.05332833,187.87,187.82,2.6625]
[1736549790599,7.05332833,187.87,187.67,2.8745]
[1736549790801,9.71542833,187.85,187.68,10.32848898]
[1736549791002,9.71542833,187.85,187.77,7.05332833]
[1736549791205,9.71542833,187.85,187.78,2.6629]
[1736549792204,9.71542833,187.85,187.77,7.05332833]
[1736549792410,9.71542833,187.85,187.79,2.6629]
[1736549793510,9.71542833,187.85,187.78,7.05332833]
[1736549793712,9.71542833,187.85,187.78,2.663]
[1736549797211,2.6875,187.88,187.79,7.05332833]
[1736549797409,7.05332833,187.86,187.79,7.05332833]
[1736549799211,9.71522833,187.86,187.8,2.6627]
[1736549808221,2.662,187.85,187.8,2.6627]
[1736549809018,2.662,187.85,187.77,7.05332833]
[1736549809224,9.71532833,187.86,187.8,2.6627]
[1736549810021,2.6621,187.85,187.79,2.6629]
[1736549824328,7.05332833,187.84,187.79,2.6629]
[1736549829428,2.6621,187.85,187.79,2.6629]
[1736549830737,5.3491,187.88,187.82,2.6624]
[1736549833140,9.71512833,187.87,187.82,2.6624]
[1736549839743,7.05332833,187.87,187.82,2.6624]
[1736549839949,2.6619,187.86,187.82,2.6624]
[1736549842548,2.6619,187.86,187.81,9.71592833]
[1736549845451,2.662,187.85,187.81,9.71592833]
[1736549846447,2.662,187.85,187.81,7.05332833]
[1736549848953,2.662,187.85,187.8,2.6627]
[1736549850255,2.662,187.85,187.79,9.71622833]
[1736549861361,2.6618,187.87,187.81,9.71582833]
[1736549873169,2.6618,187.87,187.81,2.6625]
[1736549873570,2.6618,187.87,187.82,7.05332833]
[1736549882480,2.8261,187.9,187.82,7.05332833]
[1736549882668,2.6615,187.89,187.83,2.6623]
[1736549883376,2.6615,187.89,187.84,2.6622]
[1736549886483,2.6615,187.89,187.82,7.05332833]
[1736549886678,2.6615,187.89,187.85,2.662]
[1736549887081,2.6614,187.9,187.84,7.05332833]
[1736549887277,2.6614,187.9,187.86,2.6619]
[1736549887586,2.6614,187.9,187.84,7.05332833]
[1736549889079,2.6614,187.9,187.84,9.71542833]
[1736549890481,2.6614,187.9,187.86,7.05332833]
[1736549903590,9.89292833,187.93,187.76,6.6746]
[1736549903591,2.6609,187.93,187.88,9.71492833]
[1736549904192,2.6609,187.93,187.88,7.05332833]
[1736549904592,7.71961795,187.95,187.9,7.05332833]
[1736549904785,5.05891795,187.95,187.9,9.71462833]
[1736549906187,58.75252209,187.97,187.91,2.6612]
[1736549906393,12.47152833,187.98,187.92,7.05332833]
[1736549907388,6.41468761,188.01,187.92,7.05332833]
[1736549907593,6.41468761,188.01,187.85,6.8842]
[1736549907594,9.07448761,188.01,187.94,9.71402833]
[1736549907898,16.12781594,188.01,187.94,9.71402833]
[1736549908397,16.12781594,188.01,187.96,7.05332833]
[1736549908398,2.6598,188.01,187.96,7.05332833]
[1736549908799,7.05332833,188.03,187.96,7.05332833]
[1736549908996,2.6597,188.02,187.96,7.05332833]
[1736549909197,2.8571,188.04,187.96,7.05332833]
[1736549909393,9.91042833,188.04,187.96,7.05332833]
[1736549909594,2.8571,188.04,187.96,7.05332833]
[1736549909798,5.5165,188.04,187.98,7.05332833]
[1736549910899,2.6595,188.03,187.98,7.05332833]
[1736549911599,5.5165,188.04,187.98,7.05332833]
[1736549915498,2.659,188.07,188.0,9.71322833]
[1736549922305,2.659,188.07,188.01,2.6598]
[1736549924309,2.659,188.07,188.02,7.05332833]
[1736549925006,58.95202014,188.1,188.04,9.71272833]
[1736549925208,66.00534847,188.1,188.04,9.71272833]
[1736549926209,66.00534847,188.1,188.0,5.38]
[1736549926415,68.66394847,188.1,188.03,2.6595]
[1736549930515,68.66394847,188.1,188.04,7.05332833]
[1736549933014,5.6484,188.12,188.06,7.05332833]
[1736549933415,5.6484,188.12,188.08,7.05332833]
[1736549935018,2.9689,188.12,188.09,2.6586]
[1736549935221,8.64231637,188.15,188.09,2.6586]
[1736549935423,8.64231637,188.15,188.1,7.05332833]
[1736549936223,8.64231637,188.15,188.12,7.05332833]
[1736549936523,2.8989,188.17,188.12,7.05332833]
[1736549936719,5.5565,188.17,188.12,9.71152833]
[1736549937125,2.8989,188.17,188.12,7.05332833]
[1736549937325,2.8989,188.17,188.13,2.6581]
[1736549937927,2.8989,188.17,188.12,9.71152833]
[1736549938340,5.6636,188.21,188.14,7.05332833]
[1736549938630,8.3206,188.21,188.15,2.6578]
[1736549939224,8.3206,188.21,188.08,5.38]
[1736549939225,2.8896,188.21,188.18,9.71062833]
[1736549939424,2.9604,188.25,188.18,9.71062833]
[1736549940325,2.9604,188.25,188.2,7.05332833]
[1736549941629,5.6168,188.25,188.2,7.05332833]
[1736549945635,10.01372833,188.25,188.15,5.38]
[1736549945836,10.01372833,188.25,188.17,7.05332833]
[1736549946336,2.6569,188.22,188.17,7.05332833]
[1736549947737,7.05332833,188.21,188.09,2.8641]
[1736549947933,7.05332833,188.19,188.12,7.05332833]
[1736549948235,2.8816,188.18,188.12,7.05332833]
[1736549948438,7.05332833,188.17,188.1,7.05332833]
[1736549948836,2.658,188.14,188.08,7.05332833]
[1736549949536,2.6581,188.13,188.07,5.38]
[1736549949732,2.6581,188.13,188.07,12.43332833]
[1736549953841,2.6584,188.11,188.04,5.4853]
[1736549954039,2.6584,188.11,188.06,7.05332833]
[1736549959543,7.05332833,188.13,188.06,7.05332833]
[1736549959544,2.6583,188.12,188.06,7.05332833]
[1736549960243,2.6585,188.11,188.06,7.05332833]
[1736549961037,7.05332833,188.13,188.06,7.05332833]
[1736549961237,2.6585,188.1,188.06,7.05332833]
[1736549961847,2.6584,188.11,188.06,7.05332833]
[1736549969356,2.6582,188.13,188.08,7.05332833]
[1736549969649,2.8816,188.18,188.12,7.05332833]
[1736549970346,5.539,188.18,188.12,7.05332833]
[1736549976855,2.9047,188.2,188.14,7.05332833]
[1736549977060,6.38547343,188.24,188.14,7.05332833]
[1736549977261,7.05332833,188.22,188.14,7.05332833]
[1736549978159,2.6571,188.2,188.14,9.71112833]
[1736549983760,7.05332833,188.22,188.14,9.71112833]
[1736549983965,2.6572,188.19,188.14,9.71112833]
[1736549985665,2.6572,188.19,188.14,7.05332833]
[1736549988568,7.05332833,188.2,188.11,5.38]
[1736549988764,2.6578,188.16,188.11,12.43332833]
[1736549991069,2.6578,188.16,188.13,7.05332833]
[1736549993076,6.39045465,188.24,188.13,7.05332833]
[1736549993379,2.6574,188.18,188.13,7.05332833]
[1736549993573,7.05332833,188.21,188.13,7.05332833]
[1736549993773,7.05332833,188.21,188.15,7.05332833]
[1736549994176,2.6573,188.19,188.15,7.05332833]
[1736549995580,7.05332833,188.24,188.17,7.05332833]
[1736549996380,2.657,188.21,188.17,7.05332833]
[1736549999672,2.6571,188.2,188.17,7.05332833]
[1736550000682,2.6573,188.19,188.17,7.05332833]
[1736550000883,7.05332833,188.22,188.15,7.05332833]
[1736550001183,7.05332833,188.22,188.14,2.6578]
[1736550002182,2.6574,188.18,188.14,2.6578]
[1736550002983,2.6574,188.18,188.13,9.71132833]
[1736550003881,2.6574,188.18,188.13,7.05332833]
[1736550004384,7.05332833,188.22,188.12,2.8379]
[1736550004686,7.05332833,188.18,188.06,2.8111]
[1736550004888,7.05332833,188.16,188.02,2.9614]
[1736550005184,7.05332833,188.14,188.03,5.36]
[1736550005385,5.5707,188.17,188.05,7.05332833]
[1736550005386,7.05332833,188.12,188.05,7.05332833]
[1736550005689,7.05332833,188.1,188.03,7.05332833]
[1736550006989,2.6594,188.04,188.01,7.05332833]
[1736550007687,2.6595,188.03,188.01,7.05332833]
[1736550008578,2.6595,188.03,187.99,7.05332833]
[1736550008779,2.6594,188.04,187.99,7.05332833]
[1736550008977,7.05332833,188.06,187.98,7.05332833]
[1736550009183,7.05332833,188.04,187.98,7.05332833]
[1736550009387,7.05332833,188.04,187.96,7.05332833]
[1736550010391,2.6598,188.01,187.96,7.05332833]
[1736550010784,7.05332833,188.04,187.92,2.8075]
[1736550011091,2.6599,188.0,187.95,7.05332833]
[1736550011691,9.77242833,188.07,187.99,7.05332833]
[1736550012087,2.6592,188.05,187.99,7.05332833]
[1736550012484,2.6592,188.05,188.01,7.05332833]
[1736550013190,5.378,188.07,188.01,7.05332833]
[1736550015189,2.7191,188.07,188.01,7.05332833]
[1736550015390,2.6591,188.06,188.01,7.05332833]
[1736550017599,5.378,188.07,188.03,7.05332833]
[1736550019302,2.7191,188.07,188.03,7.05332833]
[1736550019502,2.7167,188.09,188.03,7.05332833]
[1736550021200,2.6588,188.08,188.03,7.05332833]
[1736550021396,9.77002833,188.09,188.0,2.6599]
[1736550021599,9.77002833,188.09,188.01,7.05332833]
[1736550022600,2.659,188.07,188.01,7.05332833]
[1736550022801,2.659,188.07,188.01,9.71312833]
[1736550026901,2.659,188.07,188.01,7.05332833]
[1736550027297,2.659,188.07,188.0,2.6599]
[1736550027604,7.05332833,188.07,187.92,2.8075]
[1736550027800,2.7167,188.09,187.98,7.05332833]
[1736550027801,7.05332833,188.05,187.98,7.05332833]
[1736550028304,7.05332833,188.05,187.93,5.38]
[1736550028502,7.05332833,188.05,187.98,7.05332833]
[1736550028701,2.6595,188.03,187.98,7.05332833]
[1736550030001,2.6595,188.03,187.99,7.05332833]
[1736550035406,2.6598,188.02,187.96,2.6605]
[1736550035706,7.05332833,188.03,187.95,7.05332833]
[1736550035899,2.956,188.02,187.95,7.05332833]
[1736550036198,2.6601,188.0,187.95,7.05332833]
[1736550036806,2.6601,188.0,187.92,2.8075]
[1736550036807,5.6157,188.02,187.97,7.05332833]
[1736550037905,2.956,188.02,187.97,7.05332833]
[1736550038207,2.66,188.0,187.97,7.05332833]
[1736550043010,2.66,188.0,187.95,9.71392833]
[1736550043405,2.66,188.0,187.95,7.05332833]
[1736550043811,2.6603,187.98,187.95,7.05332833]
[1736550044309,10.00932833,188.02,187.95,7.05332833]
[1736550044903,10.00932833,188.02,187.93,7.05332833]
[1736550045105,2.6606,187.96,187.93,7.05332833]
[1736550049213,2.6606,187.96,187.9,57.51953695]
[1736550049412,2.6606,187.96,187.93,7.05332833]
[1736550054419,2.6604,187.97,187.93,7.05332833]
[1736550055812,2.6599,188.0,187.95,7.05332833]
[1736550056116,2.6599,188.0,187.97,7.05332833]
[1736550059321,2.6599,188.0,187.97,9.71362833]
[1736550059520,5.6157,188.02,187.97,7.05332833]
[1736550059923,2.956,188.02,187.97,9.71362833]
[1736550060222,2.6598,188.01,187.97,9.71362833]
[1736550062022,2.6598,188.01,187.97,7.05332833]
[1736550067827,2.6599,188.0,187.95,9.71392833]
[1736550068832,2.6593,188.05,187.99,9.71342833]
[1736550069022,12.84432833,188.08,188.01,7.05332833]
[1736550069731,5.791,188.08,188.01,7.05332833]
[1736550071229,2.6592,188.05,188.01,7.05332833]
[1736550072038,2.6591,188.07,188.03,7.05332833]
[1736550074438,2.9409,188.08,188.01,2.6597]
[1736550074643,2.6591,188.06,188.02,7.05332833]
[1736550075443,2.6595,188.04,187.97,2.6602]
[1736550075637,2.6595,188.04,188.0,7.05332833]
[1736550077443,2.6595,188.03,188.0,7.05332833]
[1736550081343,7.05332833,188.04,187.97,7.05332833]
[1736550081642,7.05332833,188.02,187.95,7.05332833]
[1736550082637,2.66,188.0,187.95,7.05332833]
[1736550084648,2.66,188.0,187.97,7.05332833]
[1736550093757,2.6601,187.99,187.97,7.05332833]
[1736550094952,2.6601,187.99,187.95,7.05332833]
[1736550099154,7.05332833,188.02,187.95,7.05332833]
[1736550099452,2.6602,187.98,187.95,7.05332833]
[1736550102957,7.05332833,188.02,187.95,7.05332833]
[1736550102958,2.935,188.01,187.95,7.05332833]
[1736550103157,2.6604,187.97,187.93,7.05332833]
[1736550105549,2.6603,187.98,187.95,7.05332833]
[1736550115460,2.6603,187.98,187.93,7.05332833]
[1736550117269,2.6604,187.97,187.93,7.05332833]
[1736550120568,2.6605,187.96,187.93,7.05332833]
[1736550121166,7.05332833,188.0,187.93,7.05332833]
[1736550121362,7.05332833,187.98,187.91,7.05332833]
[1736550121871,7.05332833,187.95,187.86,51.16838212]
[1736550122071,2.7127,188.0,187.85,7.05332833]
[1736550122072,7.05332833,187.91,187.85,7.05332833]
[1736550122274,7.05332833,187.91,187.84,7.05332833]
[1736550122970,7.05332833,187.89,187.82,7.05332833]
[1736550124073,2.662,187.86,187.82,7.05332833]
[1736550124375,1.6597,187.93,187.8,7.05332833]
[1736550124376,7.05332833,187.87,187.8,7.05332833]
[1736550124575,1.6163,187.86,187.8,7.05332833]
[1736550124775,2.6622,187.84,187.8,7.05332833]
[1736550126076,2.6622,187.84,187.78,2.663]
[1736550126077,2.6621,187.85,187.82,7.05332833]
[1736550128375,4.2782,187.86,187.82,7.05332833]
[1736550129078,2.6621,187.85,187.82,7.05332833]
[1736550129373,1.6163,187.86,187.82,7.05332833]
[1736550129579,2.6616,187.89,187.84,7.05332833]
[1736550130175,4.3006,187.91,187.86,7.05332833]
[1736550130375,1.6393,187.91,187.88,7.05332833]
[1736550130672,8.64582833,187.98,187.9,7.05332833]
[1736550130877,2.6605,187.96,187.9,7.05332833]
[1736550131076,2.6605,187.96,187.92,7.05332833]
[1736550132982,2.6604,187.97,187.92,7.05332833]
[1736550137879,4.2195,187.98,187.94,7.05332833]
[1736550139181,2.6604,187.97,187.91,2.6612]
[1736550139381,2.6604,187.97,187.91,9.71452833]
[1736550140984,2.6604,187.97,187.91,7.05332833]
[1736550142383,1.5593,187.98,187.95,7.05332833]
[1736550142581,3.235,188.04,187.97,7.05332833]
[1736550142782,10.28832833,188.04,187.97,7.05332833]
[1736550143282,2.6597,188.02,187.97,7.05332833]
[1736550144380,1.6422,188.04,187.99,7.05332833]
[1736550144585,7.05332833,188.06,187.99,7.05332833]
[1736550145486,2.6594,188.04,187.99,7.05332833]
[1736550146990,7.05332833,188.04,187.86,1.5769]
[1736550147186,7.05332833,188.02,187.95,7.05332833]
[1736550147584,2.66,188.0,187.95,7.05332833]
[1736550152392,2.66,188.0,187.93,2.6609]
[1736550152601,2.66,188.0,187.95,7.05332833]
[1736550153699,2.6602,187.99,187.95,7.05332833]
[1736550160590,7.05332833,188.02,187.97,7.05332833]
[1736550160796,1.6713,188.07,187.99,7.05332833]
[1736550160996,7.05332833,188.06,187.99,7.05332833]
[1736550161194,1.6713,188.07,188.01,7.05332833]
[1736550161898,2.6592,188.05,188.01,7.05332833]
[1736550165198,4.3302,188.07,188.03,7.05332833]
[1736550165801,1.6713,188.07,188.03,7.05332833]
[1736550166002,6.09761551,188.08,188.03,7.05332833]
[1736550166194,6.09761551,188.08,188.05,7.05332833]
[1736550166392,2.6585,188.11,188.05,7.05332833]
[1736550166899,84.6471,188.12,188.07,7.05332833]
[1736550167096,1.5894,188.14,188.09,7.05332833]
[1736550167303,1.5305,188.17,188.11,7.05332833]
[1736550167493,7.05332833,188.14,188.0,5.36]
[1736550167699,7.05332833,188.14,188.06,7.05332833]
[1736550167700,2.6582,188.13,188.06,7.05332833]
[1736550167901,7.05332833,188.14,188.06,7.05332833]
[1736550168905,7.05332833,188.12,188.04,7.05332833]
[1736550169205,7.05332833,188.1,188.02,7.05332833]
[1736550169802,2.6591,188.06,188.02,7.05332833]
[1736550170999,2.6594,188.05,188.0,5.36]
[1736550171201,2.6594,188.05,188.01,7.05332833]
[1736550171398,7.05332833,188.06,187.99,7.05332833]
[1736550171601,2.6596,188.03,187.99,7.05332833]
[1736550171902,7.05332833,188.04,187.96,7.05332833]
[1736550172111,1.6437,188.03,187.96,7.05332833]
[1736550173107,2.6599,188.01,187.96,7.05332833]
[1736550173400,7.05332833,188.02,187.96,7.05332833]
[1736550173606,7.05332833,188.0,187.93,7.05332833]
[1736550174410,2.6603,187.98,187.93,7.05332833]
[1736550174707,7.05332833,187.98,187.9,7.05332833]
[1736550175007,198.2,188.03,187.87,7.05332833]
[1736550175008,7.05332833,187.94,187.87,7.05332833]
[1736550175207,1.6433,187.93,187.87,7.05332833]
[1736550176207,1.6433,187.93,187.89,7.05332833]
[1736550177909,4.3043,187.93,187.89,7.05332833]
[1736550178510,1.6433,187.93,187.87,7.05332833]
[1736550178811,2.6613,187.9,187.85,7.05332833]
[1736550179213,2.6616,187.89,187.85,7.05332833]
[1736550181925,2.6616,187.89,187.83,7.05332833]
[1736550183012,7.05332833,187.9,187.81,5.4]
[1736550183221,7.05332833,187.9,187.83,7.05332833]
[1736550183416,7.05332833,187.88,187.83,7.05332833]
[1736550183615,2.6619,187.86,187.81,7.05332833]
[1736550183818,7.05332833,187.88,187.81,7.05332833]
[1736550184013,7.05332833,187.84,187.74,2.6635]
[1736550184214,7.05332833,187.82,187.72,1.6457]
[1736550184414,7.05332833,187.82,187.75,7.05332833]
[1736550184617,2.6628,187.8,187.75,7.05332833]
[1736550185819,9.71582833,187.82,187.75,7.05332833]
[1736550186720,2.6625,187.82,187.77,7.05332833]
[1736550189017,3.2042,187.83,187.77,7.05332833]
[1736550189217,3.2042,187.83,187.79,7.05332833]
[1736550189419,3.2042,187.83,187.76,11.02915128]
[1736550189821,3.2042,187.83,187.77,2.6632]
[1736550190433,5.8666,187.83,187.77,2.6632]
[1736550192922,3.2042,187.83,187.73,11.02915128]
[1736550194119,2.6632,187.77,187.7,13.69325128]
[1736550194813,2.6632,187.77,187.71,2.664]
[1736550195924,2.6631,187.78,187.71,2.664]
[1736550196124,12.57845128,187.82,187.7,11.02915128]
[1736550197120,2.6635,187.76,187.7,11.02915128]
[1736550198224,2.6635,187.76,187.69,2.6642]
[1736550200226,2.6635,187.75,187.69,2.6642]
[1736550200726,11.02915128,187.79,187.67,13.69365128]
[1736550201127,11.02915128,187.79,187.67,2.6645]
[1736550201829,11.02915128,187.79,187.64,16.42915128]
[1736550202030,2.6639,187.73,187.66,2.6646]
[1736550202629,2.6638,187.73,187.66,2.6646]
[1736550204830,3.174,187.75,187.67,2.6646]
[1736550204831,2.6636,187.74,187.67,2.6646]
[1736550205134,3.174,187.75,187.67,2.6646]
[1736550205927,3.174,187.75,187.64,11.02915128]
[1736550206133,2.6639,187.72,187.65,2.6648]
[1736550206735,2.6639,187.72,187.66,2.6647]
[1736550208032,3.174,187.75,187.64,13.69405128]
[1736550208033,2.664,187.71,187.64,13.69405128]
[1736550208239,2.664,187.71,187.64,11.02915128]
[1736550208433,4.796,187.75,187.64,11.02915128]
[1736550208840,11.02915128,187.73,187.61,16.42915128]
[1736550209038,11.02915128,187.73,187.61,11.02915128]
[1736550209438,11.8640665,187.75,187.68,7.0680665]
[1736550209938,7.0680665,187.78,187.72,7.0680665]
[1736550210334,9.7312665,187.78,187.72,7.0680665]
[1736550210535,7.0680665,187.78,187.72,7.0680665]
[1736550211341,2.6632,187.77,187.72,7.0680665]
[1736550212242,2.6638,187.73,187.68,7.0680665]
[1736550212445,7.0680665,187.74,187.67,5.42]
[1736550213048,7.0680665,187.72,187.67,5.42]
[1736550213250,7.0680665,187.72,187.66,7.0680665]
[1736550214152,2.6642,187.7,187.66,7.0680665]
[1736550218150,2.6641,187.71,187.66,7.0680665]
[1736550218551,1.5766,187.79,187.68,7.0680665]
[1736550218751,2.6637,187.74,187.68,7.0680665]
[1736550219348,2.6639,187.72,187.68,7.0680665]
[1736550219761,7.0680665,187.74,187.68,7.0680665]
[1736550219953,2.6641,187.71,187.66,7.0680665]
[1736550220249,7.0680665,187.74,187.66,7.0680665]
[1736550220455,7.0680665,187.7,187.64,7.0680665]
[1736550220845,7.0680665,187.68,187.62,7.0680665]
[1736550221853,2.6646,187.68,187.64,7.0680665]
[1736550222053,1.5284,187.69,187.62,7.0680665]
[1736550222258,1.5284,187.69,187.53,29.03788144]
[1736550222259,7.0680665,187.68,187.53,29.03788144]
[1736550222554,2.6651,187.64,187.6,7.0680665]
[1736550223148,7.0680665,187.66,187.6,7.0680665]
[1736550223350,2.6649,187.65,187.6,7.0680665]
[1736550225849,2.6646,187.67,187.62,7.0680665]
[1736550226455,7.0680665,187.68,187.55,5.42]
[1736550226648,7.0680665,187.64,187.54,6.9447]
[1736550226862,7.0680665,187.62,187.5,37.35021328]
[1736550227054,2.6656,187.61,187.55,7.0680665]
[1736550227257,4.2141,187.61,187.55,7.0680665]
[1736550227954,7.0680665,187.66,187.6,7.0680665]
[1736550228261,1.5926,187.67,187.62,7.0680665]
[1736550229261,2.6648,187.66,187.62,7.0680665]
[1736550229558,7.0680665,187.68,187.62,7.0680665]
[1736550230054,1.6781,187.71,187.51,5.42]
[1736550230055,7.0680665,187.64,187.57,7.0680665]
[1736550230660,2.6653,187.62,187.57,7.0680665]
[1736550234661,2.6656,187.61,187.54,2.6663]
[1736550234856,2.6656,187.61,187.55,7.0680665]
[1736550240866,2.6656,187.61,187.57,7.0680665]
[1736550242869,1.6553,187.63,187.59,7.0680665]
[1736550243072,7.0680665,187.67,187.61,7.0680665]
[1736550243466,2.6645,187.68,187.63,7.0680665]
[1736550243967,2.6646,187.67,187.63,7.0680665]
[1736550244170,9.7326665,187.67,187.61,9.7334665]
[1736550244370,7.0680665,187.67,187.61,9.7334665]
[1736550244674,9.7326665,187.67,187.61,9.7334665]
[1736550244873,1.678,187.7,187.65,7.0680665]
[1736550245277,4.2152,187.72,187.67,7.0680665]
[1736550245671,1.5513,187.72,187.67,7.0680665]
[1736550245972,7.0680665,187.71,187.65,7.0680665]
[1736550246168,2.6643,187.69,187.65,7.0680665]
[1736550246368,7.0680665,187.67,187.62,7.0680665]
[1736550246875,7.0680665,187.67,187.6,7.0680665]
[1736550247072,2.6649,187.65,187.6,7.0680665]
[1736550247766,2.6649,187.65,187.58,7.0680665]
[1736550247767,2.6651,187.64,187.58,7.0680665]
[1736550247971,147.50645203,187.8,187.62,7.0680665]
[1736550248173,7.0680665,187.75,187.68,7.0680665]
[1736550248372,2.6635,187.75,187.7,7.0680665]
[1736550248772,2.6636,187.74,187.7,7.0680665]
[1736550249474,2.6636,187.74,187.67,2.6646]
[1736550249666,1.552,187.77,187.69,11.03981526]
[1736550250072,2.6638,187.73,187.66,12.58321526]
[1736550250373,12.59181526,187.77,187.66,11.03981526]
[1736550250674,2.6638,187.73,187.66,13.70451526]
[1736550250874,2.6638,187.73,187.66,11.03981526]
[1736550251076,12.59181526,187.77,187.66,11.03981526]
[1736550251375,2.6637,187.74,187.67,2.6646]
[1736550252078,12.59181526,187.77,187.63,11.03981526]
[1736550253076,2.664,187.72,187.64,2.665]
[1736550253574,2.6636,187.74,187.63,11.03981526]
[1736550253776,12.59181526,187.77,187.63,11.03981526]
[1736550255078,2.6638,187.73,187.66,2.6647]
[1736550256678,11.03981526,187.71,187.57,1.5541]
[1736550256882,1.6683,187.7,187.58,5.48]
[1736550257082,2.6647,187.66,187.59,2.6657]
[1736550257578,1.6683,187.7,187.57,1.5541]
[1736550257777,2.6649,187.66,187.58,2.6659]
[1736550258083,11.03981526,187.68,187.57,5.5]
[1736550258290,11.03981526,187.68,187.56,11.03981526]
[1736550258782,11.03981526,187.68,187.53,16.53981526]
[1736550258973,11.03981526,187.65,187.53,11.03981526]
[1736550259379,1.597,187.64,187.53,11.03981526]
[1736550260083,2.6655,187.61,187.54,2.6663]
[1736550266388,1.597,187.64,187.53,11.03981526]
[1736550266583,1.597,187.64,187.56,11.03981526]
[1736550266886,195.0,187.69,187.59,11.03981526]
[1736550267089,196.6596,187.69,187.59,11.03981526]
[1736550267988,2.6647,187.66,187.59,11.03981526]
[1736550268694,2.6646,187.68,187.59,11.03981526]
[1736550268892,1.6596,187.69,187.62,11.03981526]
[1736550269085,1.6683,187.7,187.62,11.03981526]
[1736550269287,1.6683,187.7,187.64,2.665]
[1736550269586,1.6683,187.7,187.62,11.03981526]
[1736550270390,4.3325,187.7,187.63,2.6651]
[1736550270585,1.6683,187.7,187.62,11.03981526]
[1736550270790,1.5956,187.74,187.65,11.03981526]
[1736550272390,2.6639,187.73,187.66,2.6647]
[1736550272695,12.63541526,187.74,187.62,11.03981526]
[1736550273091,2.6642,187.7,187.62,13.70501526]